Cogmind - Beta 15 @@@ ROGUE MODE // 2025.05.14 @ 21:38:44 Player: markverb1 Result: Destroyed by G-34 Mercenary with Small Laser Performance ------------- Evolutions (0) 0 Regions Visited (1) 200 Robots Destroyed (28) 140 Value Destroyed (463) 463 Prototype IDs (0) 0 Alien Tech Used (0) 0 Bonus (0) 0 TOTAL SCORE: 803 Bonus ------- None Cogmind --------- Core Integrity 0/250 Matter 287/300 Energy 100/100 System Corruption 0% Temperature Cool (6) Movement Walking (680) Ox8 Location -10/Materials Parts ------- > --- POWER (1) -------- (None) > --- PROPULSION (2) --- Aluminum Leg > --- UTILITY (2) ------ Huge Storage Unit Propulsion Shielding > --- WEAPON (2) ------- Light Assault Rifle Mining Claw > --- INVENTORY (25) --- Light Ion Engine Visual Processing Unit Transport Network Coupler ECM Suite Light Armor Plating Datajack Hammer Peak State ------------ > --- POWER ------------ Ion Engine > --- PROPULSION ------- Aluminum Leg Aluminum Leg > --- UTILITY ---------- Small Storage Unit Propulsion Shielding > --- WEAPON ----------- Medium Laser Grenade Launcher > --- INVENTORY -------- Light Ion Engine Visual Processing Unit Transport Network Coupler ECM Suite Light Assault Rifle Mining Claw [Rating: 7] Favorites ----------- Power Ion Engine Engine Ion Engine Propulsion Aluminum Leg Leg Aluminum Leg Utility Propulsion Shielding Storage Medium Storage Unit Protection Propulsion Shielding Weapon Medium Laser Energy Gun Medium Laser Ballistic Gun Light Assault Rifle Launcher Grenade Launcher Slashing Weapon Mining Claw Build | -11 -10 ------- Run | Yrd Mat Slots Evolved . | . . Power . | . . Propulsion . | . . Utility . | . . Weapon . | . . Parts Attached 12 | 4 8 Power 1 | . 1 Engine 1 | . 1 Core . | . . Reactor . | . . Propulsion 3 | 2 1 Treads . | . . Leg 3 | 2 1 Wheel . | . . Hover . | . . Flight . | . . Utility 4 | 1 3 Device . | . . Storage 3 | 1 2 Processor . | . . Hackware . | . . Protection 1 | . 1 Artifact . | . . Weapon 4 | 1 3 Energy Gun 1 | . 1 Energy Cannon . | . . Ballistic Gun 1 | 1 . Ballistic Cannon . | . . Launcher 1 | . 1 Special Weapon . | . . Impact Weapon . | . . Slashing Weapon 1 | . 1 Piercing Weapon . | . . Special Melee Weapon . | . . Unidentified Prototypes . | . . Parts Lost 5 | . 5 Power 1 | . 1 Propulsion 2 | . 2 Utility . | . . Weapon 2 | . 2 Highest Loss Streak 2 | . 2 To Critical Strikes . | . . Average Backups 6 | 2 6 Power 1 | . 1 Propulsion . | . . Utility 2 | . 3 Weapon 2 | . 2 Tool/Special . | . . Unused Backups 7 | . 7 Power 1 | . 1 Propulsion . | . . Utility 4 | . 4 Weapon 1 | . 1 Tool/Special 1 | . 1 Average Slot Usage (%) 86 | . 86 Engine 10 | . 10 Leg 20 | . 20 Storage 14 | . 14 Protection 13 | . 13 Energy Gun 13 | . 13 Ballistic Gun 1 | . 1 Launcher 7 | . 7 Slashing Weapon 4 | . 4 Peak Build Rating 7 | 4 7 Average Rating 6 | 3 6 On Entrance 2 | . 4 Naked Turns . | . . Heaviest Build 90 | 6 90 Greatest Support 20 | 20 20 Greatest Overweight (x) 8 | . 8 Average Overweight (x) . | . . Largest Inventory Capacity 25 | 8 25 Average Capacity 9 | 7 9 Most Carried 9 | 4 9 Average Carried 6 | 1 6 Final Capacity 25 | 8 25 Final Carried 7 | 2 7 Class Distribution -------------------- 100% | Mutant Dominant Class ---------------- Mutant | -10/Materials Resources | -11 -10 ----------- Run | Yrd Mat Matter Collected 507 | 224 283 Remotely . | . . Salvage Created 550 | . 550 Parts 44 | . 44 Haulers Intercepted 1 | . 1 Recyclers Shooed 1 | . 1 Parts Field Recycled . | . . Retrieved Matter . | . . Parts Self-Destructed . | . . Prevented . | . . Kills | -11 -10 ------- Run | Yrd Mat Combat Hostiles Destroyed 17 | . 17 Melee 1 | . 1 Guns 4 | . 4 AOE 12 | . 12 Classes Destroyed 7 | . 7 Worker 2 | . 2 Builder 4 | . 4 Hauler 1 | . 1 Recycler 1 | . 1 Watcher 3 | . 3 Swarmer 9 | . 9 Grunt 8 | . 8 Best Kill Streak 7 | . 7 Combat Bots Only 3 | . 3 Max Kills in Single Turn 3 | . 3 Gunslinging . | . . Exploded 3 | . 3 Melee 1 | . 1 Uniques/NPCs Destroyed . | . . Combat | -11 -10 -------- Run | Yrd Mat Hostile Shots Fired 84 | . 84 Missed 21 | . 21 Hits 63 | . 63 Projectile 63 | . 63 Damage Taken 934 | . 934 Core 258 | . 258 Absorbed by Shields . | . . Redirected to Shielding 90 | . 90 Regen/Repaired (Parts) 71 | . 71 Core Remaining (%) 100 | 100 . Volleys Fired 51 | . 51 Largest 2 | . 2 Hottest 80 | . 80 Shots Fired 79 | . 79 Gun 61 | . 61 Cannon . | . . Launcher 18 | . 18 Special . | . . Kinetic 13 | . 13 Thermal 48 | . 48 Explosive 18 | . 18 Electromagnetic . | . . Robot Hit Streak 6 | . 6 Robot Miss Streak 5 | . 5 Penetration Max . | . . Secondary Targets 1 | . 1 Max Gunslinging Chain 1 | . 1 Shots Hit Robots 44 | . 44 Core Hits 38 | . 38 Critical Kills 1 | . 1 Critical Parts Destroyed . | . . Critical Strikes 2 | . 2 Burn 1 | . 1 Destroy 1 | . 1 Melee Attacks 5 | . 5 Impact . | . . Slashing 5 | . 5 Piercing . | . . Sneak Attacks . | . . Combat Hostiles . | . . Follow-up Attacks . | . . Damage Inflicted 1479 | . 1479 Guns 423 | . 423 Cannons . | . . Explosions 972 | . 972 Melee 70 | . 70 Ramming 14 | . 14 Kinetic 73 | . 73 Thermal 427 | . 427 Explosive 895 | . 895 Electromagnetic . | . . Impact . | . . Slashing 70 | . 70 Piercing . | . . Highest Corruption . | . . Average Corruption . | . . Corruption Purged . | . . Corruption Blocked . | . . Overload Shots . | . . Overflow Damage 45 | . 45 Projectiles . | . . Explosions 45 | . 45 Melee . | . . Knockbacks 1 | . 1 Impact 1 | . 1 Kinetic . | . . Secondary . | . . Self-Inflicted Damage 268 | . 268 Shots 9 | . 9 Rammed . | . . Targets Rammed 2 | . 2 Kicked 2 | . 2 Crushed . | . . Highest Temperature 105 | . 105 Average Temperature 27 | . 27 Received Heat Transfer 276 | . 276 Siege Activations . | . . Martial Activations . | . . Shielding Activations . | . . Robots Disrupted . | . . Combat Hostiles . | . . Robots Corrupted . | . . Combat Hostiles . | . . Parts Fried . | . . Impact Corruptions . | . . Robots Melted . | . . Combat Hostiles . | . . Parts Melted 2 | . 2 Heat Transferred 1160 | . 1160 Parts Sabotaged . | . . Parts Stolen . | . . Parts Stripped . | . . Power Chain Reactions . | . . Alert | -11 -10 ------- Run | Yrd Mat Maximum Alert Level 1 | . 1 Low Security (%) 98 | 100 98 Level 1 1 | . 1 Level 2 . | . . Level 3 . | . . Level 4 . | . . Level 5 . | . . High Security . | . . Max Security . | . . Peak Influence 208 | . 208 Initial . | . . Average 103 | . 107 Influence Increases 610 | . 610 Destroy 0b10 Robot/C 340 | . 340 Destroy 0b10 Robot/NC 55 | . 55 Destroy Leader 78 | . 78 Successful Hack 28 | . 28 Disable Machine 15 | . 15 Destroy Structure 94 | . 94 Influence Decreases 530 | . 530 Time Decay 480 | . 480 Lost Part 50 | . 50 Squads Dispatched 5 | . 5 Investigation 3 | . 3 Extermination . | . . Reinforcement 2 | . 2 Assault . | . . Garrison . | . . Intercept . | . . Searches Triggered . | . . Construction Impeded . | . . Haulers Reinforced . | . . Active Scanning Responses . | . . Cargo Convoy Interrupts . | . . Stealth | -11 -10 --------- Run | Yrd Mat Distress Signals 2 | . 2 Communications Jammed . | . . Distress Signals . | . . Times Spotted 25 | . 25 Peak Tracking Total 5 | . 5 Tactical Retreats . | . . Traps | -11 -10 ------- Run | Yrd Mat Traps Triggered 1 | . 1 Indirectly . | . . Trap Hack Attempts . | . . Triggered . | . . Disarmed . | . . Reprogrammed 1 | . 1 Reused . | . . Traps Extracted . | . . Installed . | . . Triggered . | . . Machines | -11 -10 ---------- Run | Yrd Mat Machines Disabled 1 | . 1 Max in Single Turn 1 | . 1 Machines Repaired . | . . Machines Dismantled . | . . Machines Sabotaged . | . . Overloaded Fab Kills . | . . Hacking | -11 -10 --------- Run | Yrd Mat Machines Accessed 6 | . 6 Terminals 5 | . 5 Fabricators . | . . Repair Stations 1 | . 1 Recycling Units . | . . Scanalyzers . | . . Garrison Access . | . . Total Hacks 23 | . 23 Successful 14 | . 14 Failed 9 | . 9 Catastrophic 1 | . 1 Database Lockouts . | . . Manual 14 | . 14 Terminals 19 | . 19 Fabricators . | . . Repair Stations 4 | . 4 Recycling Units . | . . Scanalyzers . | . . Garrison Access . | . . Terminal Hacks 6 | . 6 Terminal Index 1 | . 1 Unreport Threat 1 | . 1 Locate Traps 1 | . 1 Reprogram Traps 1 | . 1 Hauler Manifests 1 | . 1 Zone Layout 1 | . 1 Fabricator Hacks . | . . Repair Station Hacks 4 | . 4 Scan Component 2 | . 2 Repair 2 | . 2 Recycling Unit Hacks . | . . Scanalyzer . | . . Garrison Access Hacks . | . . Unauthorized Hacks 4 | . 4 Terminals 4 | . 4 Botnet 4 | . 4 Fabricators . | . . Repair Stations . | . . Recycling Units . | . . Scanalyzers . | . . Garrison Access . | . . Data Cores Recovered . | . . Used . | . . Hacking Detections 6 | . 6 Full Trace Events 5 | . 5 Feedback Events . | . . Feedback Blocked . | . . Robot Schematics Acquired . | . . Robots Built . | . . Authchips . | . . Time . | . . Total Robot Build Rating . | . . Part Schematics Acquired . | . . Parts Built . | . . Authchips . | . . Time . | . . Total Part Build Rating . | . . Parts Repaired 2 | . 2 Time 52 | . 52 Parts Recycled . | . . Recycled Matter . | . . Retrieved Matter . | . . Retrieved Components . | . . Parts Scanalyzed . | . . Part Schematics Acquired . | . . Parts Damaged . | . . Bothacking | -11 -10 ------------ Run | Yrd Mat Used RIF Installer . | . . Robots Hacked . | . . Non-combat . | . . Combat . | . . Robot Hacks Applied . | . . Relay Couplers Released . | . . Fabnet Peak Effective % . | . . Robots Rewired . | . . Allies Hacked . | . . Hacks Repelled . | . . Allies | -11 -10 -------- Run | Yrd Mat Total Allies . | . . Largest Group . | . . Highest-Rated Group . | . . Highest-Rated Ally . | . . Total Orders . | . . Ally Attacks . | . . Total Damage . | . . Kills . | . . Allies Corrupted . | . . Allies Melted . | . . Intel | -11 -10 ------- Run | Yrd Mat Active Infowar (turns) . | . . Robot Analysis Total . | . . Derelict Logs Recovered . | . . Drone Launches . | . . Drone Recoveries . | . . Exploration | -11 -10 ------------- Run | Yrd Mat Turns Passed 1509 | 48 1461 Spaces Moved 731 | 39 692 Core 41 | 12 29 Treads . | . . Legs 690 | 27 663 Wheels . | . . Hover . | . . Flight . | . . Fastest Speed 50 | 50 120 Average Speed 173 | 98 177 Slowest Speed 680 | 120 680 Overloaded Moves . | . . Propulsion Burnouts . | . . Robots Hopped . | . . Potential Cave-ins . | . . Cave-ins Triggered . | . . Exploration Rate (%) 42 | 3 82 Regions Visited 1 Branch Regions . Pre-discovered Areas . | . . Known Exits Taken . | . . Unknown Exits Taken 1 | 1 . Scrap Searched . | . . Spaces Dug . | . . Terrain Destroyed 96 | . 96 Melee . | . . Projectile . | . . AOE 96 | . 96 Terrain Rammed . | . . Walls Destroyed . | . . Machines Disabled . | . . Actions | -11 -10 --------- Run | Yrd Mat Total 884 | 48 836 Wait 56 | . 56 Move 730 | 38 692 Hop . | . . Pick Up 21 | 6 15 Fast Attach . | . . Attach 13 | 4 9 Detach 1 | . 1 Swap 3 | . 3 Drop 2 | . 2 Fire 51 | . 51 Melee 5 | . 5 Ram . | . . Kick 2 | . 2 Crush . | . . Escape Stasis . | . . Rewire . | . . Trap . | . . Miscellaneous . | . . Route ------- -11/Scrapyard -10/Materials (discovered 4 exits: [*Mat x3] / [*Min]) History --------- Turn | Location | Event 8 | -11/Scrapyard | Discovered new exit (range 16) 49 | -11/Scrapyard | Entered Materials 315 | -10/Materials | Build established: Mutant 328 | -10/Materials | Discovered new exit (range 12) 433 | -10/Materials | Repaired Grenade Launcher 462 | -10/Materials | Repaired Propulsion Shielding 666 | -10/Materials | Discovered new exit (range 14) 742 | -10/Materials | Discovered new exit (range 3) 954 | -10/Materials | Discovered new exit (range 14) 1122 | -10/Materials | Core integrity fell below 50% 1495 | -10/Materials | Core integrity fell below 20% 1510 | -10/Materials | Destroyed by G-34 Mercenary with Small Laser Last Messages --------------- Testing... Terminal linked with 2 systems. Awaiting botnet instructions. >>Traps(Reprogram) Reprogrammed 1 Shock Trap. ALERT: Suspicious activity at Terminal M007. Dispatching Investigation squad. Connecting with Terminal... >>Trojan(Botnet) Trojan loaded successfully. Testing... Terminal linked with 3 systems. Awaiting botnet instructions. ALERT: Suspicious activity at Terminal M005. Dispatching Investigation squad. Acquired Huge Storage Unit. Dropped Med. Storage Unit. Ion Engine destroyed. Med. Laser destroyed. G-34 Mercenary destroyed. Map ----- +----------------------------------------------------+ | | | | | | | | | | | | | | | | | | | | | | | | | | | | | | | | | ????????????????????????????####### | | ????????????????????????????# | | ????????????????????????????# [ | | #######?????????????????????# ![ | | # #??########???????????# [ | | #""" #??#! #???????????# | | #""" #### #?#?????????# | | #""" # # """ #?# ????# | | #""" # # """ #?# """????# " " | | #""" + %/@ """ #?? """????# "R" | | # #g #= #??? """????# """ | | ####### ########???? ????# | | ?????# #############+########+## | | ?????# | | ?????# T | | ?????# ### ######## | | ??#####+#####+######## ########## | | ??# # """ # # | | ??#"" # """"" # # | | ??#"" """ # """"" + / """"" | | ??#"T """ # """"" # # """"" | | ??#"" """ # """ # % # """"" | | ??#"" # # # | | ??# ! #= ### ########## | | ??# # ### ## #? | | ??########### ### ## T #? | | ????????????############%#" ! #? | | ??????????????????????##!#" #? | | ??????????????????????## #" #? | | ??????????????????????## #T """" #? | | ??????????????????????## #" """" #? | | ???????????????????????# #" """" #? | | ???????????????????????# #" #? | | ???????????????????????# ## ## | +----------------------------------------------------+ Best States ------------- Heat Dissipation 25 Energy Generation 10 Energy Capacity 250 Matter Stores 300 Matter Capacity 300 Sight Range 16 Terrain Scan Density 10 Propulsion Shielding 33 Evasion (%) 55 Item Schematics ----------------- None Robot Schematics ------------------ None Fabricated ------------ Nothing Repaired ---------- Grenade Launcher | 51% | -10/Materials Propulsion Shielding | 16% | -10/Materials Alien Tech Used ----------------- None Achievements -------------- Loot Pinata Quantum Hacking True Hacker Challenges ------------ None Game ------ Seed ReinforcedBlanketClaymores Manual? 0 Play Time 00:17:46 Cumulative 1.5 hours Start 2025.05.14 @ 21:23:09 End 2025.05.14 @ 21:38:44 Sessions 1 Manual Loads 0 Difficulty Rogue Special Mode None Game No. 7 Rogue 7 Adventurer 0 Explorer 0 Win Type - Total 0 Types 0/0/0/0/0/0/0/0/0/0 Lore% 3 Gallery% 3 Achievement% 7 Wizard Run 0 Options --------- Layout 1 ASCII 0 Keyboard 0 Movement Mouse Keybinds 0 Fullscreen 1 Font 32/Smallcaps Map View 50x35 Zoom Use 0% Tactical HUD 0 Map Filters NONE Filters NONE Steam 1 RUN: 12fe93f6-42c5-430c-b1af-a50b2d56f392